Cogmind - Beta 13 @@@ ROGUE MODE // 2024.07.04 @ 23:25:39 Player: sormi Result: Destroyed by PB-TQ1(z) with Zionite Laser-S Performance ------------- Evolutions (1) 500 Regions Visited (5) 1000 Robots Destroyed (31) 155 Value Destroyed (718) 718 Prototype IDs (3) 60 Alien Tech Used (0) 0 Bonus (600) 600 TOTAL SCORE: 3033 Bonus ------- Met Imprinter 300 Was Imprinted 300 Cogmind --------- Core Integrity 0/400 Matter 224/300 Energy 229/265 System Corruption 0% Temperature Warm (189) Movement Treading (160) Location -7/Deep Caves Parts ------- > --- POWER (1) -------- Reinforced Ion Engine > --- PROPULSION (2) --- Light Treads Improved Treads > --- UTILITY (3) ------ Signal Interpreter Light Armor Plating > --- WEAPON (3) ------- Light EM Pulse Cannon > --- INVENTORY (5) ---- Light Deuterium Engine Cooling System RU-N14's Throwing Claymores (2) Makeshift Sword CR-A16's Pointy Stick Peak State ------------ > --- POWER ------------ Reinforced Ion Engine > --- PROPULSION ------- Carbon-fiber Leg Improved Titanium Leg > --- UTILITY ---------- Heat Sink Small Storage Unit Signal Interpreter > --- WEAPON ----------- EM Shotgun Spread Laser RU-N14's Throwing Claymores > --- INVENTORY -------- Light Deuterium Engine Light Treads Cooling System Light Armor Plating Light EM Pulse Cannon Precision Grenade Launcher Heavy Hammer Makeshift Sword [Rating: 25] Favorites ----------- Power Reinforced Ion Engine Engine Reinforced Ion Engine Power Core Light Nuclear Core Propulsion Light Treads Treads Light Treads Leg Carbon-fiber Leg Wheel Wheel Utility Small Storage Unit Device Heat Sink Storage Small Storage Unit Processor Signal Interpreter Protection Light Armor Plating Weapon Spread Laser Energy Gun Spread Laser Energy Cannon Light EM Pulse Cannon Ballistic Gun Improved Assault Rifle Launcher Precision Grenade Launcher Special Weapon RU-N14's Throwing Claymores Build | -11 -10 -9 -9 -7 -7 ------- Run | Yrd Mat Mat Min Zio Dee Slots Evolved 2 | . . 2 . . . Power . | . . . . . . Propulsion . | . . . . . . Utility 1 | . . 1 . . . Weapon 1 | . . 1 . . . Parts Attached 42 | 6 3 12 9 9 3 Power 5 | 1 1 1 2 . . Engine 4 | 1 1 1 1 . . Core 1 | . . . 1 . . Reactor . | . . . . . . Propulsion 10 | 2 . 2 2 4 . Treads 7 | 2 . 2 1 2 . Leg 2 | . . . . 2 . Wheel 1 | . . . 1 . . Hover . | . . . . . . Flight . | . . . . . . Utility 6 | 1 1 2 1 . 1 Device 3 | . . 2 1 . . Storage 1 | 1 . . . . . Processor 1 | . 1 . . . . Hackware . | . . . . . . Protection 1 | . . . . . 1 Artifact . | . . . . . . Weapon 21 | 2 1 7 4 5 2 Energy Gun 6 | 1 1 1 2 1 . Energy Cannon 4 | . . . 1 2 1 Ballistic Gun 6 | 1 . 5 . . . Ballistic Cannon . | . . . . . . Launcher 4 | . . 1 1 1 1 Special Weapon 1 | . . . . 1 . Impact Weapon . | . . . . . . Slashing Weapon . | . . . . . . Piercing Weapon . | . . . . . . Special Melee Weapon . | . . . . . . Unidentified Prototypes 3 | . . 1 . 2 . Parts Lost 15 | . . 2 8 . 5 Power 2 | . . 1 1 . . Propulsion 3 | . . 1 2 . . Utility 3 | . . . 1 . 2 Weapon 7 | . . . 4 . 3 Highest Loss Streak 8 | . . 1 8 . 5 To Critical Strikes . | . . . . . . Average Slot Usage (%) 95 | . 98 97 84 96 100 Engine 10 | . 14 11 4 11 11 Treads 15 | . 28 19 13 10 22 Leg 3 | . . . . 6 . Wheel 2 | . . . 3 4 . Device 9 | . . 11 7 11 10 Storage 11 | . 14 11 11 11 11 Processor 11 | . 12 11 11 11 11 Energy Gun 16 | . 14 11 10 19 21 Energy Cannon 6 | . . . 2 11 6 Ballistic Gun 7 | . 14 21 12 . . Naked Turns . | . . . . . . Heaviest Build 31 | 10 13 20 23 26 31 Greatest Support 43 | 40 40 43 43 43 43 Greatest Overweight (x) 8 | 3 . . 5 8 . Average Overweight (x) . | . . . . . . Largest Inventory Capacity 8 | 8 8 8 8 8 8 Average Capacity 7 | 7 8 8 8 8 7 Most Carried 8 | 3 7 8 8 8 8 Average Carried 6 | 1 5 7 6 6 7 Final Capacity 8 | 8 8 8 8 8 5 Final Carried 8 | 2 7 8 3 8 5 Class Distribution -------------------- 57% | Gunner 15% | Mutant 13% | Scavenger-Gunner 13% | Scavenger-Mutant Dominant Class ---------------- Mutant | -10/Materials Gunner | -9/Materials Scavenger-Gunner | -9/Mines Gunner | -7/Zion Gunner | -7/Deep Caves Resources | -11 -10 -9 -9 -7 -7 ----------- Run | Yrd Mat Mat Min Zio Dee Matter Collected 834 | 203 78 332 168 53 . Remotely . | . . . . . . Salvage Created 885 | . 92 566 227 . . Parts 57 | . 11 34 12 . . Haulers Intercepted . | . . . . . . Recyclers Shooed . | . . . . . . Parts Field Recycled . | . . . . . . Retrieved Matter . | . . . . . . Parts Self-Destructed 1 | . . . . 1 . Prevented . | . . . . . . Kills | -11 -10 -9 -9 -7 -7 ------- Run | Yrd Mat Mat Min Zio Dee Combat Hostiles Destroyed 27 | . 5 16 6 . . Guns 21 | . 5 10 6 . . AOE 6 | . . 6 . . . Classes Destroyed 7 | . 2 5 . . . Worker 2 | . . 1 1 . . Recycler 1 | . . 1 . . . Watcher 1 | . 1 . . . . Swarmer 11 | . 5 6 . . . Grunt 12 | . . 7 5 . . Brawler 1 | . . 1 . . . Sentry 2 | . . 2 . . . Best Kill Streak 8 | . 3 8 3 . . Combat Bots Only 6 | . 3 6 3 . . Max Kills in Single Turn 3 | . 1 3 2 . . Gunslinging 1 | . . 1 1 . . Exploded 2 | . . 2 . . . Melee . | . . . . . . Uniques/NPCs Destroyed 1 | . . . 1 . . YI-UF0 (-9/Mines) Combat | -11 -10 -9 -9 -7 -7 -------- Run | Yrd Mat Mat Min Zio Dee Hostile Shots Fired 178 | . 40 66 54 . 18 Missed 42 | . 7 21 12 . 2 Damage Taken 2444 | . 271 560 1096 . 517 Core 481 | . 67 26 361 . 27 Absorbed by Shields . | . . . . . . Core Remaining (%) 86 | 100 73 . . . . Volleys Fired 74 | . 22 30 20 . 2 Largest 3 | . 2 3 3 . 3 Hottest 157 | . 70 118 111 . 157 Shots Fired 181 | . 44 89 44 . 4 Gun 169 | . 44 85 39 . 1 Cannon 2 | . . . . . 2 Launcher 10 | . . 4 5 . 1 Special . | . . . . . . Kinetic 101 | . 22 55 24 . . Thermal 68 | . 22 30 15 . 1 Explosive 10 | . . 4 5 . 1 Electromagnetic 2 | . . . . . 2 Robot Hit Streak 22 | . 6 22 16 . 2 Robot Miss Streak 5 | . 5 1 4 . 4 Penetration Max . | . . . . . . Secondary Targets 4 | . . 2 2 . . Max Gunslinging Chain 2 | . . 1 2 . . Shots Hit Robots 110 | . 19 62 26 . 3 Core Hits 54 | . 8 29 16 . 1 Critical Kills . | . . . . . . Critical Parts Destroyed . | . . . . . . Critical Strikes 5 | . 3 2 . . . Burn 5 | . 3 2 . . . Melee Attacks . | . . . . . . Impact . | . . . . . . Slashing . | . . . . . . Piercing . | . . . . . . Sneak Attacks . | . . . . . . Combat Hostiles . | . . . . . . Follow-up Attacks . | . . . . . . Damage Inflicted 1944 | . 214 1239 410 . 81 Guns 1442 | . 214 852 371 . 5 Cannons 2 | . . . . . 2 Explosions 495 | . . 382 39 . 74 Melee . | . . . . . . Ramming 5 | . . 5 . . . Kinetic 835 | . 102 524 209 . . Thermal 607 | . 112 328 162 . 5 Explosive 495 | . . 382 39 . 74 Electromagnetic 2 | . . . . . 2 Impact . | . . . . . . Slashing . | . . . . . . Piercing . | . . . . . . Highest Corruption . | . . . . . . Average Corruption . | . . . . . . Corruption Purged . | . . . . . . Corruption Blocked . | . . . . . . Overload Shots . | . . . . . . Overflow Damage 2 | . . 2 . . . Projectiles . | . . . . . . Explosions 2 | . . 2 . . . Melee . | . . . . . . Knockbacks 1 | . . 1 . . . Impact 1 | . . 1 . . . Kinetic . | . . . . . . Secondary . | . . . . . . Self-Inflicted Damage 11 | . . . 11 . . Shots 1 | . . . 1 . . Rammed 2 | . . 2 . . . Targets Rammed 2 | . . 2 . . . Kicked . | . . . . . . Crushed . | . . . . . . Highest Temperature 180 | . 180 30 72 . 180 Average Temperature 48 | . 82 10 25 . 88 Received Heat Transfer 459 | . . 168 147 . 144 Siege Activations . | . . . . . . Robots Corrupted . | . . . . . . Combat Hostiles . | . . . . . . Parts Fried . | . . . . . . Impact Corruptions . | . . . . . . Robots Melted . | . . . . . . Combat Hostiles . | . . . . . . Parts Melted 6 | . 3 3 . . . Heat Transferred 1913 | . 555 999 358 . 1 Parts Sabotaged . | . . . . . . Parts Stolen . | . . . . . . Parts Stripped . | . . . . . . Power Chain Reactions . | . . . . . . Alert | -11 -10 -9 -9 -7 -7 ------- Run | Yrd Mat Mat Min Zio Dee Peak Influence 352 | . 132 352 230 . . Initial 65 | . . 55 65 . . Average 127 | . 60 144 177 . . Maximum Alert Level 1 | . . 1 1 . . Low Security (%) 82 | 100 100 85 59 . . Level 1 17 | . . 14 40 . . Level 2 . | . . . . . . Level 3 . | . . . . . . Level 4 . | . . . . . . Level 5 . | . . . . . . High Security . | . . . . . . Max Security . | . . . . . . Squads Dispatched 1 | . . 1 . . . Investigation . | . . . . . . Extermination . | . . . . . . Reinforcement 1 | . . 1 . . . Assault . | . . . . . . Garrison . | . . . . . . Intercept . | . . . . . . Searches Triggered . | . . . . . . Construction Impeded . | . . . . . . Haulers Reinforced . | . . . . . . Active Scanning Responses . | . . . . . . Cargo Convoy Interrupts . | . . . . . . Stealth | -11 -10 -9 -9 -7 -7 --------- Run | Yrd Mat Mat Min Zio Dee Distress Signals 4 | . 2 1 1 . . Communications Jammed . | . . . . . . Distress Signals . | . . . . . . Times Spotted 49 | . 9 21 16 . 3 Peak Tracking Total 4 | . 4 3 4 . 3 Tactical Retreats 1 | . . . 1 . . Traps | -11 -10 -9 -9 -7 -7 ------- Run | Yrd Mat Mat Min Zio Dee Traps Triggered 1 | . . 1 . . . Indirectly . | . . . . . . Trap Hack Attempts . | . . . . . . Triggered . | . . . . . . Disarmed . | . . . . . . Reprogrammed . | . . . . . . Reused . | . . . . . . Traps Extracted . | . . . . . . Installed . | . . . . . . Triggered . | . . . . . . Machines | -11 -10 -9 -9 -7 -7 ---------- Run | Yrd Mat Mat Min Zio Dee Machines Disabled 1 | . . 1 . . . Max in Single Turn 1 | . . 1 . . . Machines Repaired . | . . . . . . Machines Dismantled . | . . . . . . Machines Sabotaged . | . . . . . . Overloaded Fab Kills . | . . . . . . Hacking | -11 -10 -9 -9 -7 -7 --------- Run | Yrd Mat Mat Min Zio Dee Machines Accessed 5 | . 1 4 . . . Terminals 5 | . 1 4 . . . Fabricators . | . . . . . . Repair Stations . | . . . . . . Recycling Units . | . . . . . . Scanalyzers . | . . . . . . Garrison Access . | . . . . . . Total Hacks 10 | . 3 7 . . . Successful 7 | . 2 5 . . . Failed 3 | . 1 2 . . . Catastrophic 1 | . . 1 . . . Database Lockouts . | . . . . . . Manual 9 | . 1 2 . 6 . Terminals 10 | . 3 7 . . . Fabricators . | . . . . . . Repair Stations . | . . . . . . Recycling Units . | . . . . . . Scanalyzers . | . . . . . . Garrison Access . | . . . . . . Terminal Hacks 7 | . 2 5 . . . Branch Access Points 1 | . . 1 . . . Alert Level 4 | . 2 2 . . . Unreport Threat 1 | . . 1 . . . Hauler Manifests 1 | . . 1 . . . Fabricator Hacks . | . . . . . . Repair Station Hacks . | . . . . . . Recycling Unit Hacks . | . . . . . . Scanalyzer . | . . . . . . Garrison Access Hacks . | . . . . . . Unauthorized Hacks . | . . . . . . Terminals . | . . . . . . Fabricators . | . . . . . . Repair Stations . | . . . . . . Recycling Units . | . . . . . . Scanalyzers . | . . . . . . Garrison Access . | . . . . . . Data Cores Recovered . | . . . . . . Used . | . . . . . . Hacking Detections 2 | . 1 1 . . . Full Trace Events . | . . . . . . Feedback Events . | . . . . . . Feedback Blocked . | . . . . . . Robot Schematics Acquired 3 | . . . . 3 . Robots Built . | . . . . . . Authchips . | . . . . . . Time . | . . . . . . Total Robot Build Rating . | . . . . . . Part Schematics Acquired 14 | . . . . 14 . Parts Built . | . . . . . . Authchips . | . . . . . . Time . | . . . . . . Total Part Build Rating . | . . . . . . Parts Repaired . | . . . . . . Time . | . . . . . . Parts Recycled . | . . . . . . Recycled Matter . | . . . . . . Retrieved Matter . | . . . . . . Retrieved Components . | . . . . . . Parts Scanalyzed . | . . . . . . Part Schematics Acquired . | . . . . . . Parts Damaged . | . . . . . . Bothacking | -11 -10 -9 -9 -7 -7 ------------ Run | Yrd Mat Mat Min Zio Dee Used RIF Installer . | . . . . . . Robots Hacked . | . . . . . . Non-combat . | . . . . . . Combat . | . . . . . . Robot Hacks Applied . | . . . . . . Relay Couplers Released . | . . . . . . Fabnet Peak Effective % . | . . . . . . Robots Rewired . | . . . . . . Allies Hacked . | . . . . . . Hacks Repelled . | . . . . . . Allies | -11 -10 -9 -9 -7 -7 -------- Run | Yrd Mat Mat Min Zio Dee Total Allies 7 | . . . . 7 . Largest Group 7 | . . . . 7 6 Highest-Rated Group 248 | . . . . 248 210 Highest-Rated Ally 42 | . . . . 42 42 Total Orders . | . . . . . . Ally Attacks 10 | . . . . . 10 Total Damage 112 | . . . . . 112 Kills . | . . . . . . Allies Corrupted . | . . . . . . Allies Melted . | . . . . . . Intel | -11 -10 -9 -9 -7 -7 ------- Run | Yrd Mat Mat Min Zio Dee Robot Analysis Total . | . . . . . . Derelict Logs Recovered 2 | . . . . 2 . Drone Launches . | . . . . . . Drone Recoveries . | . . . . . . Exploration | -11 -10 -9 -9 -7 -7 ------------- Run | Yrd Mat Mat Min Zio Dee Turns Passed 3585 | 72 347 748 383 1852 183 Spaces Moved 1955 | 40 174 357 206 1070 108 Core 26 | 19 . . 6 1 . Treads 1417 | 21 174 357 134 623 108 Legs 446 | . . . . 446 . Wheels 66 | . . . 66 . . Hover . | . . . . . . Flight . | . . . . . . Fastest Speed 50 | 50 160 160 95 125 160 Average Speed 164 | 155 160 160 151 169 160 Slowest Speed 450 | 200 160 160 300 450 160 Overloaded Moves . | . . . . . . Propulsion Burnouts . | . . . . . . Robots Hopped . | . . . . . . Cave-ins Triggered . | . . . . . . Exploration Rate (%) 38 | 3 29 38 49 86 23 Regions Visited 5 Branch Regions 3 Pre-discovered Areas 3 | . . . . 3 . Known Exits Taken 4 | . 1 1 1 1 . Unknown Exits Taken 1 | 1 . . . . . Scrap Searched 3 | . . . . 3 . Spaces Dug . | . . . . . . Terrain Destroyed 35 | . . 23 12 . . Melee . | . . . . . . Projectile . | . . . . . . AOE 35 | . . 23 12 . . Terrain Rammed . | . . . . . . Walls Destroyed . | . . . . . . Machines Disabled . | . . . . . . Actions | -11 -10 -9 -9 -7 -7 --------- Run | Yrd Mat Mat Min Zio Dee Total 2188 | 48 202 474 243 1106 115 Wait 68 | . . 46 7 14 1 Move 1950 | 39 173 356 205 1069 108 Hop . | . . . . . . Pick Up 26 | 3 3 14 . 6 . Fast Attach 17 | 5 2 4 2 4 . Attach 12 | 1 . 3 5 1 2 Detach 3 | . 1 . . 2 . Swap 13 | . 1 5 2 4 1 Drop 21 | . . 14 2 4 1 Fire 74 | . 22 30 20 . 2 Melee . | . . . . . . Ram . | . . . . . . Kick . | . . . . . . Crush 2 | . . 2 . . . Escape Stasis . | . . . . . . Rewire 2 | . . . . 2 . Trap . | . . . . . . Miscellaneous . | . . . . . . Route ------- -11/Scrapyard -10/Materials -9/Materials (discovered 2 exits: *Min x2) -9/Mines (discovered 2 exits: *Mat / *Zio) -7/Zion -7/Deep Caves History --------- Turn | Location | Event 30 | -11/Scrapyard | Discovered new exit (range 16) 73 | -11/Scrapyard | Entered Materials 271 | -10/Materials | Discovered new exit (range 3) 312 | -10/Materials | Build established: Mutant 313 | -10/Materials | Identified exit to Materials 420 | -10/Materials | Entered another Materials area 420 | -9/Materials | Evolved 2 slots: Utility x1, Weapon x1 759 | -9/Materials | Build established: Gunner 1025 | -9/Materials | Identified exit to Mines 1168 | -9/Materials | Entered Mines 1235 | -9/Mines | Discovered new exit (range 5) 1240 | -9/Mines | Identified exit to Materials 1414 | -9/Mines | Core integrity fell below 50% 1426 | -9/Mines | Core integrity fell below 20% 1429 | -9/Mines | Destroyed YI-UF0 1458 | -9/Mines | Lost 8 parts (1p2n1u4w) 1545 | -9/Mines | A Derelict revealed a hidden shortcut to a safe place 1547 | -9/Mines | Assembled infested the area 1549 | -9/Mines | Identified exit to Zion 1551 | -9/Mines | Entered Zion 1787 | -7/Zion | Learned Factory security intel 1830 | -7/Zion | Build established: Scavenger-Mutant 1978 | -7/Zion | Learned location of Warlord (-4) 2138 | -7/Zion | Acquired unknown access codes intercepted by a Zionite 2513 | -7/Zion | Imprinted 2516 | -7/Zion | Declared Zion's savior 2573 | -7/Zion | Build established: Gunner 2602 | -7/Zion | Found Prototype Special Weapon 2603 | -7/Zion | Identified RU-N14's Throwing Claymores 3012 | -7/Zion | Gained Derelict followers 3114 | -7/Zion | Found CR-A16's Pointy Stick 3361 | -7/Zion | Opened final containment barrier to the Deep Caves 3385 | -7/Zion | Discovered new exit (range 3) 3385 | -7/Zion | Saw the warning signs outside the Deep Caves entrance 3389 | -7/Zion | Identified exit to Deep Caves 3403 | -7/Zion | Entered Deep Caves 3403 | -7/Deep Caves | Accompanied by 7 allies 3572 | -7/Deep Caves | Attacked by Z-Imprinter 3575 | -7/Deep Caves | Z-Facility disabled 3586 | -7/Deep Caves | Destroyed by PB-TQ1(z) with Zionite Laser-S Last Messages --------------- you'd be crazy enough to head out this way. We'll go back and get... reinforcements... yeah." 03405_ 27-TO5(M) slips into the shadows. 03406_ IH-7TH(M) slips into the shadows. 03406_ H6-6HX(M) slips into the shadows. 03407_ IR-5XY(M) slips into the shadows. 03514_ Dropped Hvy. Hammer. 03536_ NEW_ZION: Z-Facility proximity alert. 03559_ JL-ES9(g) destroyed. 03568_ 3Q-R93(g) destroyed. 03571_ Heat Sink destroyed. Z-Imprinter: GET AWAY FROM HERE! I've worked too hard for our future just to have you ruin everything! 03575_ Z-Facility disabled. 03575_ EM Shotgun destroyed. 03581_ Prc. Grenade Launcher destroyed. 03583_ Sml. Storage Unit destroyed. 03583_ Spread Laser destroyed. Map ----- +----------------------------------------------------+ | | | | | | | | | | | | | | | | | | | | | | | | | | | | | ?????????????????????????????????????????????????? | | ??????????????????????###############????????????? | | ???????????????????#### ##???????????? | | ??????????????????## #????###????? | | ??????????????#??## #####" ##???? | | ??????????????# ## ## " #???# | | ??????????? ## "#### | | ??????????? | | ?????????? !%[ | | ?????????? ! % | | ?????????? I z | | ?????????? """"" @ z | | ?????????????????? """"""" " " ! | | ???????????????????""""""" " """" | | ???????????????????"""""""""""""" | | ????????????????????"""""""""" | | ?????????????????????"""""""""""" | | ????????????????????????""""""""" | | ??????????????????????????????""" | | ???????????????????????????????"" | | ???????????????????????????????? | | ???????????????????????????????? | | ???????????????????????????????? | | ???????????????????????????????? | | ???????????????????????????????? ???? | | ???????????????????????????????? ??????? | | ?????????????????????????????????????????????? | | ???????????????????????????????????????????????? | | ?????????????????????????????????????????????????? | | ?????????????????????????????????????????????????? | | ?????????????????????????????????????????????????? | | ?????????????????????????????????????????????????? | | ?????????????????????????????????????????????????? | | ?????????????????????????????????????????????????? | | ?????????????????????????????????????????????????? | | ?????????????????????????????????????????????????? | +----------------------------------------------------+ Best States ------------- Heat Dissipation 42 Energy Generation 14 Energy Capacity 265 Matter Stores 300 Matter Capacity 300 Sight Range 16 Terrain Scan Density 10 Armor Coverage 150 Evasion (%) 55 Recoil Reduction 2 Item Schematics ----------------- Greatsword | -7/Zion | Archive Lrn. Missile Launcher | -7/Zion | Archive Imp. Cryofiber Web | -7/Zion | Archive Lyr. Light Armor Plating | -7/Zion | Archive Imp. Medium Treads | -7/Zion | Archive Mak. Salvage Targeting Computer | -7/Zion | Archive Field Propulsion Drive | -7/Zion | Archive Neutrino Core | -7/Zion | Archive Ripper | -7/Zion | Archive Imp. Particle Charger | -7/Zion | Archive Gauss Rifle | -7/Zion | Archive EM Disruption Field | -7/Zion | Archive Arc Projector | -7/Zion | Archive Corruption Screen | -7/Zion | Archive Robot Schematics ------------------ R-06 Scavenger | -7/Zion | Archive B-48 Gladiator | -7/Zion | Archive M-28 Smith | -7/Zion | Archive Fabricated ------------ Nothing Alien Tech Used ----------------- None Achievements -------------- Adventurer Signs Are For Wimps Challenges ------------ None Game ------ Seed StealthScrapPlating Manual? 0 Play Time 00:37:48 Cumulative 28.7 hours Start 2024.07.04 @ 22:36:07 End 2024.07.04 @ 23:25:39 Sessions 1 Manual Loads 0 Difficulty Rogue Special Mode None Game No. 27 Rogue 27 Adventurer 0 Explorer 0 Win Type - Total 0 Types 0/0/0/0/0/0/0/0/0 Lore% 11 Gallery% 33 Achievement% 23 Wizard Run 0 Options --------- Layout 1 ASCII 0 Keyboard 1 Movement Numpad Keybinds 1 Fullscreen 1 Font 24/Smallcaps Map View 50x35 Zoom Use 0% Tactical HUD 1 Map Filters NONE Filters NONE Steam 1 RUN: 360a6032-dda1-4aad-9f8d-a16fecde2ba4